Cogmind - Beta 16.1 @@@ ROGUE MODE // 2026.03.12 @ 10:13:30 Player: obl-vn Result: Destroyed by XB-M9H(R) with Subdweller Beam Cannon Performance ------------- Evolutions (0) 0 Regions Visited (2) 400 Robots Destroyed (35) 175 Value Destroyed (876) 876 Prototype IDs (0) 0 Alien Tech Used (0) 0 Bonus (0) 0 TOTAL SCORE: 1451 Bonus ------- None Cogmind --------- Core Integrity 0/250 Matter 290/300 Energy 200/200 System Corruption 0% Temperature Cool (15) Movement Rolling (130) Ox2 Location -10/Subcaves Parts ------- > --- POWER (1) -------- Subdweller Power Source > --- PROPULSION (2) --- Subdweller Monowheel Subdweller Monowheel > --- UTILITY (2) ------ Disposable Heat Sink Huge Storage Unit > --- WEAPON (2) ------- Subdweller Beam Cannon Battle Rifle > --- INVENTORY (25) --- Subdweller Power Source Subdweller Monowheel Subdweller Monowheel Subdweller Monowheel Flightbrick Medium Storage Unit Small Matter Pod (50) High-capacity Matter Pod (200) Subdweller Optics Scrap Shield Hacking Suite Makeshift Hacking Suite Makeshift System Restoration Module Medium Laser Medium Laser Light Assault Rifle Subdweller Machine Gun Subdweller Machine Gun Grenade Launcher Peak State ------------ > --- POWER ------------ Subdweller Power Source > --- PROPULSION ------- Subdweller Monowheel Subdweller Monowheel > --- UTILITY ---------- Disposable Heat Sink Huge Storage Unit > --- WEAPON ----------- Subdweller Beam Cannon Battle Rifle > --- INVENTORY -------- Subdweller Power Source Subdweller Monowheel Subdweller Monowheel Flightbrick Medium Storage Unit Small Matter Pod High-capacity Matter Pod Subdweller Optics Scrap Shield Hacking Suite Makeshift Hacking Suite Makeshift System Restoration Module Medium Laser Medium Laser Light Assault Rifle Subdweller Machine Gun Subdweller Machine Gun Grenade Launcher [Rating: 20] Favorites ----------- Power Light Ion Engine Engine Light Ion Engine Propulsion Light Treads Treads Light Treads Wheel Subdweller Monowheel Utility Huge Storage Unit Device Disposable Heat Sink Storage Huge Storage Unit Protection Light Armor Plating Weapon Subdweller Machine Gun Energy Gun Medium Laser Energy Cannon Subdweller Beam Cannon Ballistic Gun Subdweller Machine Gun Launcher Grenade Launcher Build | -11 -10 -10 ------- Run | Yrd Mat Sub Slots Evolved . | . . . Power . | . . . Propulsion . | . . . Utility . | . . . Weapon . | . . . Parts Attached 33 | 7 15 11 Power 3 | 1 1 1 Engine 3 | 1 1 1 Core . | . . . Reactor . | . . . Propulsion 9 | 2 3 4 Treads 4 | 2 2 . Leg . | . . . Wheel 5 | . 1 4 Hover . | . . . Flight . | . . . Utility 10 | 2 6 2 Device 2 | 1 . 1 Storage 4 | 1 2 1 Processor . | . . . Hackware . | . . . Protection 4 | . 4 . Artifact . | . . . Weapon 11 | 2 5 4 Energy Gun 3 | 1 2 . Energy Cannon 1 | . . 1 Ballistic Gun 5 | 1 1 3 Ballistic Cannon . | . . . Launcher 2 | . 2 . Special Weapon . | . . . Impact Weapon . | . . . Slashing Weapon . | . . . Piercing Weapon . | . . . Special Melee Weapon . | . . . Unidentified Prototypes . | . . . Parts Lost 11 | . 2 9 Power 1 | . . 1 Propulsion 5 | . . 5 Utility 4 | . 2 2 Weapon 1 | . . 1 Highest Loss Streak 4 | . 1 4 To Critical Strikes . | . . . Average Backups 9 | . 8 12 Power . | . . . Propulsion 1 | . 1 1 Utility 4 | . 3 5 Weapon 3 | . 3 5 Tool/Special . | . . . Unused Backups 16 | . 3 13 Power 1 | . . 1 Propulsion 4 | . 1 3 Utility 7 | . 1 6 Weapon 4 | . 1 3 Tool/Special . | . . . Average Slot Usage (%) 97 | . 100 95 Engine 12 | . 14 11 Treads 16 | . 27 5 Wheel 10 | . . 20 Device 7 | . 2 13 Storage 14 | . 14 14 Protection 6 | . 11 . Energy Gun 7 | . 14 1 Energy Cannon 3 | . . 6 Ballistic Gun 16 | . 13 19 Peak Build Rating 20 | 7 8 20 Average Rating 11 | 4 7 15 On Entrance 5 | . 7 8 Avg Prop Armor Cover (%) 7 | . . 7 Naked Turns . | . . . Heaviest Build 98 | 12 23 98 Greatest Support 40 | 40 40 40 Greatest Overweight (x) 9 | . . 9 Average Overweight (x) 2 | . . 4 Largest Inventory Capacity 25 | 8 25 25 Average Capacity 15 | 7 8 23 Most Carried 23 | 3 10 23 Average Carried 11 | . 8 15 Final Capacity 25 | 8 10 25 Final Carried 23 | 1 10 23 Class Distribution -------------------- 56% | Mutant 43% | Scavenger-Mutant Dominant Class ---------------- Mutant | -10/Materials Scavenger-Mutant | -10/Subcaves Resources | -11 -10 -10 ----------- Run | Yrd Mat Sub Matter Collected 1159 | 276 388 495 Remotely . | . . . Salvage Created 1146 | 169 350 627 Parts 84 | 14 18 52 Haulers Intercepted 1 | . 1 . Recyclers Shooed 3 | 1 2 . Parts Field Recycled . | . . . Retrieved Matter . | . . . Parts Self-Destructed 21 | . . 21 Prevented . | . . . Parts Restored . | . . . Kills | -11 -10 -10 ------- Run | Yrd Mat Sub Combat Hostiles Destroyed 28 | . 9 19 Guns 18 | . 6 12 Cannons 6 | . . 6 AOE 3 | . 3 . Classes Destroyed 9 | 2 5 2 Tunneler 3 | 3 . . Hauler 1 | . 1 . Recycler 1 | 1 . . Operator 1 | . 1 . Watcher 1 | . 1 . Swarmer 10 | . 3 7 Grunt 6 | . 6 . Sentry 1 | . . 1 Subdweller 11 | . . 11 Best Kill Streak 5 | 4 3 5 Combat Bots Only 5 | . 3 5 Max Kills in Single Turn 2 | 1 2 1 Gunslinging . | . . . Exploded 2 | . 2 . Melee . | . . . Uniques/NPCs Destroyed . | . . . Combat | -11 -10 -10 -------- Run | Yrd Mat Sub Hostile Shots Fired 148 | . 62 86 Missed 34 | . 13 21 Hits 114 | . 49 65 Projectile 114 | . 49 65 Critical Strikes 2 | . 2 . Damage Taken 1770 | . 647 1123 Core 266 | . 58 208 Absorbed by Shields . | . . . Regen/Repaired (Parts) 88 | . 88 . Core Remaining (%) 100 | 100 . . Volleys Fired 140 | 6 65 69 Largest 2 | 2 2 2 Hottest 110 | 70 70 110 Shots Fired 242 | 12 113 117 Gun 203 | 12 107 84 Cannon 33 | . . 33 Launcher 6 | . 6 . Special . | . . . Kinetic 132 | 6 59 67 Thermal 104 | 6 48 50 Explosive 6 | . 6 . Electromagnetic . | . . . Robot Hit Streak 14 | 4 11 14 Robot Miss Streak 3 | 1 3 3 Penetration Max . | . . . Secondary Targets 4 | . . 4 Max Gunslinging Chain 1 | . . 1 Shots Hit Robots 160 | 8 72 80 Core Hits 59 | 5 28 26 Critical Kills 2 | . . 2 Critical Parts Destroyed 1 | . . 1 Critical Strikes 4 | . 1 3 Burn 1 | . 1 . Meltdown 1 | . . 1 Destroy 2 | . . 2 Melee Attacks . | . . . Impact . | . . . Slashing . | . . . Piercing . | . . . Sneak Attacks . | . . . Combat Hostiles . | . . . Follow-up Attacks . | . . . Damage Inflicted 2267 | 93 849 1325 Guns 1787 | 93 729 965 Cannons 360 | . . 360 Explosions 120 | . 120 . Melee . | . . . Ramming . | . . . Kinetic 1179 | 42 343 794 Thermal 968 | 51 386 531 Explosive 120 | . 120 . Electromagnetic . | . . . Impact . | . . . Slashing . | . . . Piercing . | . . . Highest Corruption . | . . . Average Corruption . | . . . Corruption Purged . | . . . Corruption Blocked . | . . . Overload Shots . | . . . Overflow Damage . | . . . Projectiles . | . . . Explosions . | . . . Melee . | . . . Knockbacks . | . . . Impact . | . . . Kinetic . | . . . Secondary . | . . . Self-Inflicted Damage . | . . . Shots . | . . . Rammed . | . . . Targets Rammed . | . . . Kicked . | . . . Crushed . | . . . Highest Temperature 322 | 100 322 30 Average Temperature 106 | 57 118 13 Received Heat Transfer 420 | . 357 63 Effects 3 | . 3 . Energy Bleed 3 | . 3 . Siege Activations . | . . . Martial Activations . | . . . Shielding Activations . | . . . Robots Disrupted . | . . . Combat Hostiles . | . . . Robots Corrupted . | . . . Combat Hostiles . | . . . Parts Fried . | . . . Impact Corruptions . | . . . Robots Melted 1 | . . 1 Combat Hostiles 1 | . . 1 Parts Melted 2 | . 1 1 Heat Transferred 2331 | 148 1184 999 Parts Sabotaged . | . . . Parts Stolen . | . . . Parts Stripped . | . . . Power Chain Reactions . | . . . Alert | -11 -10 -10 ------- Run | Yrd Mat Sub Maximum Alert Level . | . . . Low Security (%) 100 | 100 100 . Level 1 . | . . . Level 2 . | . . . Level 3 . | . . . Level 4 . | . . . Level 5 . | . . . High Security . | . . . Max Security . | . . . Peak Influence 88 | 15 88 . Initial . | . . . Average 11 | 2 12 . Influence Increases 586 | 20 291 275 Destroy 0b10 Robot/C 340 | . 180 160 Destroy 0b10 Robot/NC 35 | 20 15 . Destroy Leader 54 | . 44 10 Successful Hack 6 | . 6 . Destroy Structure 46 | . 46 . Lose Combat Pursuer 105 | . . 105 Influence Decreases 586 | 20 253 313 Entered New Map 19 | . . 19 Time Decay 537 | 20 243 274 Lost Part 30 | . 10 20 Squads Dispatched 1 | . 1 . Investigation . | . . . Extermination . | . . . Reinforcement 1 | . 1 . Assault . | . . . Garrison . | . . . Intercept . | . . . Searches Triggered . | . . . Construction Impeded . | . . . Haulers Reinforced . | . . . Active Scanning Responses . | . . . Cargo Convoy Interrupts . | . . . Stealth | -11 -10 -10 --------- Run | Yrd Mat Sub Distress Signals 3 | . 3 . Communications Jammed . | . . . Distress Signals . | . . . Times Spotted 45 | . 22 23 Peak Tracking Total 7 | . 4 7 Tactical Retreats 3 | . . 3 Traps | -11 -10 -10 ------- Run | Yrd Mat Sub Traps Triggered . | . . . Indirectly . | . . . Trap Hack Attempts . | . . . Triggered . | . . . Disarmed 6 | . 6 . Reprogrammed . | . . . Reused . | . . . Traps Extracted . | . . . Installed . | . . . Triggered . | . . . Machines | -11 -10 -10 ---------- Run | Yrd Mat Sub Machines Disabled . | . . . Max in Single Turn . | . . . Machines Repaired . | . . . Machines Dismantled . | . . . Machines Sabotaged . | . . . Overloaded Fab Kills . | . . . Hacking | -11 -10 -10 --------- Run | Yrd Mat Sub Machines Accessed 7 | . 7 . Terminals 5 | . 5 . Fabricators . | . . . Repair Stations 1 | . 1 . Recycling Units 1 | . 1 . Scanalyzers . | . . . Garrison Access . | . . . Total Hacks 19 | . 19 . Successful 12 | . 12 . Failed 7 | . 7 . Catastrophic 2 | . 2 . Database Lockouts . | . . . Manual 12 | . 12 . Terminals 16 | . 16 . Fabricators . | . . . Repair Stations 2 | . 2 . Recycling Units 1 | . 1 . Scanalyzers . | . . . Garrison Access . | . . . Terminal Hacks 4 | . 4 . Robot Analysis 2 | . 2 . Locate Traps 1 | . 1 . Disarm Traps 1 | . 1 . Fabricator Hacks . | . . . Repair Station Hacks 2 | . 2 . Scan Component 1 | . 1 . Repair 1 | . 1 . Recycling Unit Hacks . | . . . Scanalyzer . | . . . Garrison Access Hacks . | . . . Unauthorized Hacks 6 | . 6 . Terminals 6 | . 6 . Track 1 | . 1 . Botnet 1 | . 1 . Disrupt 1 | . 1 . Skim 3 | . 3 . Fabricators . | . . . Repair Stations . | . . . Recycling Units . | . . . Scanalyzers . | . . . Garrison Access . | . . . Data Cores Recovered . | . . . Used . | . . . Hacking Detections 6 | . 6 . Full Trace Events . | . . . Feedback Events . | . . . Feedback Blocked . | . . . Robot Schematics Acquired . | . . . Robots Built . | . . . Authchips . | . . . Time . | . . . Total Robot Build Rating . | . . . Part Schematics Acquired . | . . . Parts Built . | . . . Authchips . | . . . Time . | . . . Total Part Build Rating . | . . . Part Studies Acquired . | . . . Parts Repaired 1 | . 1 . Time 26 | . 26 . Parts Recycled . | . . . Recycled Matter . | . . . Retrieved Matter . | . . . Retrieved Components . | . . . Parts Scanalyzed . | . . . Part Schematics Acquired . | . . . Parts Damaged . | . . . Bothacking | -11 -10 -10 ------------ Run | Yrd Mat Sub Used RIF Installer . | . . . Robots Hacked . | . . . Non-combat . | . . . Combat . | . . . Robot Hacks Applied . | . . . Relay Couplers Released . | . . . Fabnet Peak Effective % . | . . . Robots Rewired . | . . . Allies Hacked . | . . . Hacks Repelled . | . . . Allies | -11 -10 -10 -------- Run | Yrd Mat Sub Total Allies . | . . . Largest Group . | . . . Highest-Rated Group . | . . . Highest-Rated Ally . | . . . Total Orders . | . . . Ally Attacks . | . . . Total Damage . | . . . Kills . | . . . Allies Corrupted . | . . . Allies Melted . | . . . Intel | -11 -10 -10 ------- Run | Yrd Mat Sub Active Infowar (turns) 697 | 25 221 451 Seismic 697 | 25 221 451 Robot Analysis Total 2 | . 2 . Derelict Logs Recovered 2 | . . 2 Drone Launches . | . . . Drone Recoveries . | . . . Exploration | -11 -10 -10 ------------- Run | Yrd Mat Sub Turns Passed 3129 | 127 1490 1512 Spaces Moved 1493 | 70 647 776 Core 19 | 19 . . Treads 733 | 51 647 35 Legs . | . . . Wheels 741 | . . 741 Hover . | . . . Flight . | . . . Fastest Speed 50 | 50 160 95 Average Speed 155 | 130 160 154 Slowest Speed 215 | 160 160 215 Overloaded Moves . | . . . Propulsion Burnouts . | . . . Robots Hopped . | . . . Potential Cave-ins . | . . . Cave-ins Triggered . | . . . Exploration Rate (%) 44 | 4 67 62 Regions Visited 2 Branch Regions 1 Pre-discovered Areas . | . . . Known Exits Taken . | . . . Unknown Exits Taken 2 | 1 1 . Scrap Searched 3 | . . 3 Spaces Dug 9 | . 9 . Terrain Destroyed 54 | . 53 1 Melee . | . . . Projectile 1 | . . 1 AOE 53 | . 53 . Terrain Rammed . | . . . Walls Destroyed . | . . . Machines Disabled . | . . . Actions | -11 -10 -10 --------- Run | Yrd Mat Sub Total 2068 | 95 1000 973 Wait 330 | 5 234 91 Move 1491 | 69 646 776 Hop . | . . . Pick Up 44 | 8 18 18 Fast Attach 1 | . 1 . Attach 21 | 7 4 10 Detach 1 | . . 1 Swap 27 | . 20 7 Drop 13 | . 12 1 Fire 140 | 6 65 69 Melee . | . . . Ram . | . . . Kick . | . . . Crush . | . . . Escape Stasis . | . . . Rewire . | . . . Trap . | . . . Miscellaneous . | . . . Route ------- -11/Scrapyard -10/Materials (discovered 2 exits: [*Mat] / [*Sub]) -10/Subcaves (discovered 1 exit: [*Mat]) History --------- Turn | Location | Event 5 | -11/Scrapyard | Discovered new exit (range 14) 128 | -11/Scrapyard | Entered Materials 305 | -10/Materials | Build established: Mutant 572 | -10/Materials | Repaired Lgt. Treads 657 | -10/Materials | Discovered new exit (range 9) 1602 | -10/Materials | Discovered new exit (range 12) 1618 | -10/Materials | Entered Subcaves 1619 | -10/Subcaves | Approached by a straggling Scientist 1674 | -10/Subcaves | A Subdweller sparked back to life 1747 | -10/Subcaves | Lost 3 parts (2n1u) 1747 | -10/Subcaves | Found Prototype Flight Unit 1824 | -10/Subcaves | Shifting Twisted Machinery released Sub. Beam Cannon 1847 | -10/Subcaves | Shifting Twisted Machinery released Sub. Laser 1981 | -10/Subcaves | Learned 2 Materials zone layouts 2023 | -10/Subcaves | Build established: Scavenger-Mutant 2138 | -10/Subcaves | Core integrity fell below 50% 2176 | -10/Subcaves | Lost 4 parts (1p2n1u) 2261 | -10/Subcaves | Discovered new exit (range 10) 2392 | -10/Subcaves | Core integrity fell below 20% 2923 | -10/Subcaves | Shifting Twisted Machinery released Piercing Trap 2930 | -10/Subcaves | Shifting Twisted Machinery released Battle Rifle 2988 | -10/Subcaves | Shifting Twisted Machinery released Mak. System Restoration Module 3076 | -10/Subcaves | Learned Materials security intel 3130 | -10/Subcaves | Destroyed by XB-M9H(R) with Subdweller Beam Cannon Last Messages --------------- Machinery. 02927_ Subatomizers dissect the Mak. Leg, destroying it. Battle Rifle falls loose from the Twisted Machinery. 02943_ Acquired Battle Rifle. 02983_ Acquired 10 matter. Mak. System Restoration Module falls loose from the Twisted Machinery. 03001_ Acquired Mak. System Restoration Module. 03033_ LG-W0F(R) destroyed. 03039_ JX-D0C(R) destroyed. 03043_ Acquired Sub. Monowheel. 03044_ Acquired 12 matter. 03049_ Acquired Sub. Monowheel. 03076_ Acquired derelict log, extracted data. Data stored: Materials security intel. 03127_ Z6-9NC(R) destroyed. 03129_ Sub. Beam Cannon shoots sparks and powers down. Map ----- +----------------------------------------------------+ | ??????????????????""" "" ##?? | | ?????????????????? """""" ##??? | | ???????????????????#""#"" ##???? | | ????????????????????"?# # # ##???? | | ????????????????????"###### #???? | | ???????????????????? ????#" #???? | | ???????????????????? ##??##"!##??? | | ???????????????????? #??#"* !##?? | | ????????????????????# #####&%! #?? | | ????????????????????# #####%!#?? | | ????????????????????"" ???# ##? | | ??????????????????### ""#????## "#? | | ????????????????### #??????#" #? | | ???????????????## #????### "#? | | ???????????????# ###### ""## | | ???????????????# ## #"## """"# | | ???????????????# ### """### | | ???????????????## #?##""" #"" #?? | | ???????????????## #### "#""# """ | | ???????????????# "###" | | ??#########??### "#?##"" | | ?##<<< <<#### """ ?####? | | ?# <<<< <<<### ## "" ""??????? | | ?#< < <<< ## # #####" ""??????? | | ?# "<< &[ ## ###???## ?????? | | ?#""" " #%@ # #??????? ?????? | | ?# " " ####R## #??????? ??????? | | ?# "??# #" #???????#?????????? | | ?# $??# #?????????????????? | | ?#$ $ ??# #?????????????????? | | ?# $ ???# # < #?????????????????? | | ?# ???#####< #?????????????????? | | ?# ???????# #?????????????????? | | ?#$ $???????## ????????????????? | | ?##$ ?????????? ???????????????? | | ??###??????????# ??????????????? | | ????????????????####??????????????? | | ??????????????????????????????????? | | ??????????????????????????????????? | | ??????????????????????????????????? | | ??????????????????????????????????? | | ??????????????????????????????????? | | ??????????????????????????????????? | | ??????????????????????????????????? | | ??????????????????????????????????? | | ??????????????????????????????????? | | ??????????????????????????????????? | | ??????????????????????????????????? | | ??????????????????????????????????? | | ??????????????????????????????????? | +----------------------------------------------------+ Best States ------------- Heat Dissipation 25 Coolant Potential 50 Energy Generation 15 Energy Capacity 250 Matter Stores 300 Matter Capacity 300 Sight Range 16 Terrain Scan Density 10 Armor Coverage 150 Evasion (%) 50 Recoil Reduction 2 Item Schematics ----------------- None Robot Schematics ------------------ None Fabricated ------------ Nothing Repaired ---------- Lgt. Treads | 37% | -10/Materials Studied --------- None Alien Tech Used ----------------- None Achievements -------------- None Challenges ------------ None Game ------ Seed WeaponsFactoryMaterializer Manual? 0 Play Time 00:26:13 Cumulative 87.6 hours Start 2026.03.12 @ 09:44:38 End 2026.03.12 @ 10:13:30 Sessions 1 Manual Loads 0 Difficulty Rogue Special Mode None Game No. 69 Rogue 69 Adventurer 0 Explorer 0 Win Type - Total 1 Types 0/0/0/1/0/0/0/0/0/0 Lore% 42 Gallery% 47 Achievement% 43 Wizard Run 0 Options --------- Layout 2 ASCII 0 Keyboard 0 Movement Mouse Keybinds 0 Fullscreen 1 Font 48/Smallcaps Map View 50x44 Zoom Use 0% Tactical HUD 1 Map Filters NONE Filters NONE Steam 1 RUN: 8d0452bc-503f-4114-bf46-31980a7aa2cd